[Event "XX Gran Hotel Bali-A 2023"]
[Site "Benidorm"]
[Date "2023.12.04"]
[Round "5.2"]
[White "Moreno Estebanez, Patxi"]
[Black "Zanan, Evgeny"]
[Result "0-1"]
[ECO "C55"]
[WhiteElo "2278"]
[BlackElo "2486"]
[Annotator "RC"]
[PlyCount "118"]
[EventDate "2023.12.02"]
[EventType "swiss"]
[EventCountry "ESP"]
[SourceTitle "playchess.com"]
[Source "ChessBase"]
[SourceQuality "1"]
[TimeControl "5400+30"]

1. e4 {[%emt 0:00:02]} e5 {[%emt 0:03:39]} 2. Nf3 {[%emt 0:00:07]} Nc6 {[%emt 0:00:36]} 3. Bc4 {[%emt 0:00:11]} Nf6 {[%emt 0:00:12]} 4. d3 {[%emt 0:00:10]} h6 {[%emt 0:03:08]} 5. c3 {[%emt 0:02:03]} d6 {[%emt 0:02:23]} 6. O-O {[%emt 0:05:19]} g5 {[%emt 0:01:20]} 7. Re1 {[%emt 0:02:41]} Bg7 {[%emt 0:01:41]} 8. Bb3 {[%emt 0:03:26]} O-O {[%emt 0:01:05]} 9. h3 {[%emt 0:17:23]} Nh7 {[%emt 0:17:28]} 10. Nh2 {[%emt 0:03:18]} Kh8 {[%emt 0:02:12]} 11. Nd2 {[%emt 0:03:28]} f5 {[%emt 0:02:28]} 12. exf5 {[%emt 0:00:43]} Bxf5 {[%emt 0:00:07]} 13. Ndf1 {[%emt 0:02:44]} Nf6 {[%emt 0:04:24]} 14. Ng3 {[%emt 0:05:13]} Bg6 {[%emt 0:09:00]} 15. d4 {[%emt 0:11:12]} exd4 {[%emt 0:02:36]} 16. cxd4 {[%emt 0:00:07]} d5 {[%emt 0:11:44]} 17. Be3 {[%emt 0:05:16]} Qd6 {[%emt 0:03:07]} 18. Nhf1 {[%emt 0:09:52]} Rae8 {[%emt 0:02:54]} 19. Qd2 {[%emt 0:02:36]} Qb4 {[%emt 0:06:23]} 20. Qxb4 {[%emt 0:03:47]} Nxb4 {[%emt 0:00:06]} 21. Re2 {[%emt 0:03:17]} c6 {[%emt 0:02:41]} 22. Rd1 {[%emt 0:00:42]} Kh7 {[%emt 0:02:56]} 23. Red2 {[%emt 0:00:45]} Na6 {[%emt 0:05:19]} 24. a3 {[%emt 0:01:21]} Nc7 {[%emt 0:00:25]} 25. f3 {[%emt 0:04:19]} Nb5 {[%emt 0:01:57]} 26. Bc2 {[%emt 0:01:04]} Bxc2 {[%emt 0:01:11]} 27. Rxc2 {[%emt 0:00:05]} Kg6 {[%emt 0:00:04]} 28. Bf2 {[%emt 0:01:45]} Nd6 {[%emt 0:01:08]} 29. b3 {[%emt 0:01:39]} Re6 {[%emt 0:00:13]} 30. Rdd2 {[%emt 0:01:45]} Nd7 {[%emt 0:04:33]} 31. a4 {[%emt 0:01:07]} Rfe8 {[%emt 0:00:24]} 32. Re2 {[%emt 0:00:45]} h5 {[%emt 0:00:21]} 33. Rxe6+ {[%emt 0:00:16]} Rxe6 {[%emt 0:00:06]} 34. Re2 {[%emt 0:00:13]} Nf8 {[%emt 0:00:12]} 35. Rd2 {[%emt 0:01:31]} Re8 {[%emt 0:03:32]} 36. Ne3 {[%emt 0:00:50]} Ne6 {[%emt 0:00:43]} 37. Ne2 {[%emt 0:00:20]} Nf4 {[%emt 0:01:03]} 38. Nxf4+ {[%emt 0:00:34]} gxf4 {[%emt 0:00:06]} 39. Nd1 {[%emt 0:01:16]} Nf5 {[%emt 0:00:34]} 40. Nc3 {[%emt 0:01:51]} h4 {[%emt 0:02:40]} 41. Ne2 {[%emt 0:00:30]} Kg5 {[%emt 0:00:20]} 42. Kf1 {[%emt 0:02:16]} Bf8 {[%emt 0:00:22]} 43. Rd3 {[%emt 0:00:45]} Bb4 {[%emt 0:00:06]} 44. Nc1 {[%emt 0:00:55]} Ng3+ {[%emt 0:01:14]} 45. Bxg3 {[%emt 0:00:05]} fxg3 {[%emt 0:00:09]} 46. Ne2 {[%emt 0:01:53]} a5 {[%emt 0:01:04]} 47. Rd1 {[%emt 0:01:16]} Re3 {[%emt 0:00:46]} 48. Nc1 {[%emt 0:00:04]} Kf5 {[%emt 0:00:56]} 49. Nd3 {[%emt 0:00:16]} Bd6 {[%emt 0:01:15]} 50. Rd2 {[%emt 0:00:49]} b6 {[%emt 0:00:50]} 51. Rd1 {[%emt 0:00:46]} Bb4 {[%emt 0:01:30]} 52. Nc1 {[%emt 0:00:37]} Rc3 {[%emt 0:00:04]} 53. Ke2 {[%emt 0:01:12]} Rc2+ {[%emt 0:00:08]} 54. Kf1 {[%emt 0:00:03]} Rf2+ {[%emt 0:00:42]} 55. Kg1 {[%emt 0:00:04]} Rb2 {[%emt 0:00:13]} 56. Kf1 {[%emt 0:00:16]} Bc3 {[%emt 0:01:25]} 57. Rd3 {[%emt 0:01:28]} Rf2+ {[%emt 0:00:06]} 58. Kg1 {[%emt 0:00:04]} Rc2 {[%emt 0:00:05]} 59. Rd1 {[%emt 0:00:12]} Bxd4+ {[%emt 0:00:06]} 0-1

[Event "XX Gran Hotel Bali-A 2023"]
[Site "Benidorm"]
[Date "2023.12.04"]
[Round "5.3"]
[White "Munoz Avila, Jose Luis"]
[Black "Moskalenko, Viktor"]
[Result "0-1"]
[ECO "A42"]
[WhiteElo "2238"]
[BlackElo "2427"]
[Annotator "RC"]
[PlyCount "60"]
[EventDate "2023.12.02"]
[EventType "swiss"]
[EventCountry "ESP"]
[SourceTitle "playchess.com"]
[Source "ChessBase"]
[SourceQuality "1"]
[TimeControl "5400+30"]

1. d4 {[%emt 0:00:03]} d6 {[%emt 0:03:03]} 2. Nf3 {[%emt 0:00:12]} g6 {[%emt 0:00:08]} 3. c4 {[%emt 0:00:07]} Bg7 {[%emt 0:00:06]} 4. Nc3 {[%emt 0:00:03]} Nd7 {[%emt 0:00:18]} 5. g3 {[%emt 0:04:22]} e5 {[%emt 0:00:30]} 6. Bg2 {[%emt 0:00:12]} Ne7 {[%emt 0:00:20]} 7. O-O {[%emt 0:03:12]} O-O {[%emt 0:00:20]} 8. d5 {[%emt 0:10:28]} h6 {[%emt 0:11:48]} 9. e4 {[%emt 0:11:29]} f5 {[%emt 0:01:00]} 10. Ne1 {[%emt 0:00:18]} Nf6 {[%emt 0:10:26]} 11. Nd3 {[%emt 0:20:54]} g5 {[%emt 0:23:47]} 12. f3 {[%emt 0:07:40]} f4 {[%emt 0:03:11]} 13. Bd2 {[%emt 0:08:42]} h5 {[%emt 0:00:28]} 14. Rc1 {[%emt 0:04:43]} Ng6 {[%emt 0:04:28]} 15. Rf2 {[%emt 0:08:40]} Bh6 {[%emt 0:13:48]} 16. Ne2 {[%emt 0:05:14]} Rf7 {[%emt 0:02:51]} 17. c5 {[%emt 0:09:09]} Rg7 {[%emt 0:00:38]} 18. Kh1 {[%emt 0:01:02]} Kh7 {[%emt 0:03:21]} 19. Qf1 {[%emt 0:01:33]} Bd7 {[%emt 0:02:00]} 20. gxf4 {[%emt 0:00:47]} gxf4 {[%emt 0:11:20]} 21. Bh3 {[%emt 0:00:14]} Ng4 {[%emt 0:00:28]} 22. fxg4 {[%emt 0:01:05]} hxg4 {[%emt 0:00:02]} 23. Bg2 {[%emt 0:01:16]} Qh4 {[%emt 0:00:22]} 24. Qg1 {[%emt 0:00:31]} g3 {[%emt 0:04:19]} 25. Rf3 {[%emt 0:00:01]} Bg4 {[%emt 0:00:22]} 26. Rcf1 {[%emt 0:00:46]} Rag8 {[%emt 0:02:17]} 27. Be1 {[%emt 0:00:18]} Qh5 {[%emt 0:00:18]} 28. Nxg3 {[%emt 0:00:39]} fxg3 {[%emt 0:00:14]} 29. Rxg3 {[%emt 0:00:06]} Nf4 {[%emt 0:00:36]} 30. Qf2 {[%emt 0:01:07]} Nxg2 {[%emt 0:01:34]} 0-1

[Event "XX Gran Hotel Bali-A 2023"]
[Site "Benidorm"]
[Date "2023.12.04"]
[Round "5.4"]
[White "Torres Sanchez, Jose"]
[Black "Decuigniere, Tom"]
[Result "1-0"]
[ECO "D02"]
[WhiteElo "2196"]
[BlackElo "2408"]
[Annotator "RC"]
[PlyCount "95"]
[EventDate "2023.12.02"]
[EventType "swiss"]
[EventCountry "ESP"]
[SourceTitle "playchess.com"]
[Source "ChessBase"]
[SourceQuality "1"]
[TimeControl "5400+30"]

1. d4 {[%emt 0:00:03]} Nf6 {[%emt 0:00:35]} 2. g3 {[%emt 0:00:15]} e6 {[%emt 0:02:34]} 3. Bg2 {[%emt 0:00:14]} d5 {[%emt 0:00:36]} 4. Nf3 {[%emt 0:00:22]} Bd6 {[%emt 0:00:39]} 5. c4 {[%emt 0:01:12]} O-O {[%emt 0:00:57]} 6. Nc3 {[%emt 0:03:46]} h6 {[%emt 0:01:43]} 7. O-O {[%emt 0:04:47]} Nc6 {[%emt 0:02:23]} 8. Qd3 {[%emt 0:08:58]} dxc4 {[%emt 0:01:48]} 9. Qxc4 {[%emt 0:00:09]} e5 {[%emt 0:00:14]} 10. d5 {[%emt 0:01:56]} Ne7 {[%emt 0:03:27]} 11. a4 {[%emt 0:07:55]} c6 {[%emt 0:03:05]} 12. e4 {[%emt 0:00:15]} cxd5 {[%emt 0:06:07]} 13. exd5 {[%emt 0:01:41]} Bf5 {[%emt 0:01:08]} 14. Re1 {[%emt 0:01:10]} Ng6 {[%emt 0:00:57]} 15. a5 {[%emt 0:03:36]} Rc8 {[%emt 0:03:41]} 16. Qb3 {[%emt 0:00:51]} Nd7 {[%emt 0:18:21]} 17. Be3 {[%emt 0:01:28]} Nc5 {[%emt 0:01:06]} 18. Bxc5 {[%emt 0:04:42]} Rxc5 {[%emt 0:01:23]} 19. Nd2 {[%emt 0:00:18]} Rxa5 {[%emt 0:02:32]} 20. Qxb7 {[%emt 0:02:29]} Rxa1 {[%emt 0:02:59]} 21. Rxa1 {[%emt 0:00:08]} Bc5 {[%emt 0:00:12]} 22. Nde4 {[%emt 0:01:25]} Bd4 {[%emt 0:11:56]} 23. Nb5 {[%emt 0:06:32]} Qb8 {[%emt 0:04:43]} 24. Qa6 {[%emt 0:13:43]} Bxb2 {[%emt 0:01:38]} 25. Ra2 {[%emt 0:00:54]} Bd4 {[%emt 0:03:11]} 26. h3 {[%emt 0:01:47]} Bc8 {[%emt 0:03:03]} 27. Qa5 {[%emt 0:07:26]} Bb6 {[%emt 0:00:08]} 28. Qa3 {[%emt 0:01:55]} a6 {[%emt 0:09:12]} 29. Nbd6 {[%emt 0:05:37]} f5 {[%emt 0:03:49]} 30. Nxc8 {[%emt 0:01:00]} Rxc8 {[%emt 0:00:40]} 31. Qxa6 {[%emt 0:07:41]} fxe4 {[%emt 0:03:03]} 32. Bxe4 {[%emt 0:03:33]} Nf8 {[%emt 0:05:31]} 33. Rb2 {[%emt 0:00:26]} Nd7 {[%emt 0:00:02]} 34. Bf5 {[%emt 0:00:41]} Qc7 {[%emt 0:03:25]} 35. Be6+ {[%emt 0:02:06]} Kh8 {[%emt 0:00:15]} 36. Bxd7 {[%emt 0:00:45]} Qxd7 {[%emt 0:00:52]} 37. Rxb6 {[%emt 0:00:06]} Qxh3 {[%emt 0:00:27]} 38. Rc6 {[%emt 0:01:17]} Rb8 {[%emt 0:00:05]} 39. Rc1 {[%emt 0:00:18]} e4 {[%emt 0:00:34]} 40. Qa7 {[%emt 0:00:41]} Rd8 {[%emt 0:00:27]} 41. Qd4 {[%emt 0:02:28]} Re8 {[%emt 0:00:59]} 42. Rc7 {[%emt 0:01:14]} Qg4 {[%emt 0:00:01]} 43. d6 {[%emt 0:00:19]} Rb8 {[%emt 0:00:22]} 44. Rc1 {[%emt 0:00:32]} Qd7 {[%emt 0:00:43]} 45. Kh2 {[%emt 0:01:52]} Rf8 {[%emt 0:00:55]} 46. Rc7 {[%emt 0:00:55]} Qg4 {[%emt 0:00:07]} 47. Re7 {[%emt 0:01:00]} e3 {[%emt 0:00:54]} 48. Qxg4 {[%emt 0:00:30]} 1-0

[Event "XX Gran Hotel Bali-A 2023"]
[Site "Benidorm"]
[Date "2023.12.04"]
[Round "5.5"]
[White "Vignesh B"]
[Black "Davtyan, David Arm."]
[Result "1/2-1/2"]
[ECO "D12"]
[WhiteElo "2140"]
[BlackElo "2362"]
[Annotator "RC"]
[PlyCount "92"]
[EventDate "2023.12.02"]
[EventType "swiss"]
[EventCountry "ESP"]
[SourceTitle "playchess.com"]
[Source "ChessBase"]
[SourceQuality "1"]
[TimeControl "5400+30"]

1. Nf3 {[%emt 0:08:37]} d5 {[%emt 0:01:05]} 2. b3 {[%emt 0:00:20]} Nf6 {[%emt 0:00:29]} 3. Bb2 {[%emt 0:00:06]} Bf5 {[%emt 0:00:59]} 4. e3 {[%emt 0:02:30]} e6 {[%emt 0:00:10]} 5. Be2 {[%emt 0:00:04]} Nbd7 {[%emt 0:00:23]} 6. O-O {[%emt 0:00:20]} Bd6 {[%emt 0:00:06]} 7. c4 {[%emt 0:09:33]} h6 {[%emt 0:02:15]} 8. Nc3 {[%emt 0:01:31]} c6 {[%emt 0:00:08]} 9. d4 {[%emt 0:00:46]} O-O {[%emt 0:00:49]} 10. Bd3 {[%emt 0:00:07]} Bxd3 {[%emt 0:08:36]} 11. Qxd3 {[%emt 0:00:06]} Bb4 {[%emt 0:00:39]} 12. Nd2 {[%emt 0:05:48]} a5 {[%emt 0:24:13]} 13. a3 {[%emt 0:00:48]} Bxc3 {[%emt 0:03:36]} 14. Bxc3 {[%emt 0:00:08]} a4 {[%emt 0:00:06]} 15. bxa4 {[%emt 0:20:09]} Rxa4 {[%emt 0:11:48]} 16. Bb4 {[%emt 0:04:12]} Re8 {[%emt 0:00:53]} 17. e4 {[%emt 0:01:07]} dxe4 {[%emt 0:05:14]} 18. Nxe4 {[%emt 0:00:17]} Nxe4 {[%emt 0:00:14]} 19. Qxe4 {[%emt 0:00:05]} Nf6 {[%emt 0:01:50]} 20. Qc2 {[%emt 0:00:36]} b5 {[%emt 0:01:40]} 21. Rfd1 {[%emt 0:01:36]} Qa8 {[%emt 0:35:47]} 22. Rac1 {[%emt 0:08:03]} Rb8 {[%emt 0:00:00]} 23. h3 {[%emt 0:18:49]} bxc4 {[%emt 0:00:00]} 24. Qxc4 {[%emt 0:00:34]} Nd5 {[%emt 0:00:00]} 25. Qxc6 {[%emt 0:00:54]} Qxc6 {[%emt 0:00:00]} 26. Rxc6 {[%emt 0:00:02]} Nxb4 {[%emt 0:00:00]} 27. axb4 {[%emt 0:00:03]} Raxb4 {[%emt 0:00:00]} 28. Rc2 {[%emt 0:03:12]} Rb1 {[%emt 0:00:00]} 29. Rxb1 {[%emt 0:03:42]} Rxb1+ {[%emt 0:00:00]} 30. Kh2 {[%emt 0:00:01]} Rd1 {[%emt 0:00:00]} 31. Rc4 {[%emt 0:00:02]} g5 {[%emt 0:00:00]} 32. g4 {[%emt 0:00:08]} Rd3 {[%emt 0:00:00]} 33. Ra4 {[%emt 0:00:05]} Kg7 {[%emt 0:00:00]} 34. Kg2 {[%emt 0:00:02]} Kg6 {[%emt 0:00:00]} 35. Rb4 {[%emt 0:00:02]} h5 {[%emt 0:00:00]} 36. Ra4 {[%emt 0:00:50]} h4 {[%emt 0:00:00]} 37. Rb4 {[%emt 0:00:04]} f5 {[%emt 0:00:00]} 38. gxf5+ {[%emt 0:00:25]} Kxf5 {[%emt 0:00:00]} 39. Rb5+ {[%emt 0:00:07]} Kf6 {[%emt 0:00:00]} 40. Rb4 {[%emt 0:00:03]} Ra3 {[%emt 0:00:00]} 41. Rc4 {[%emt 0:00:03]} Kf5 {[%emt 0:00:00]} 42. Rc5+ {[%emt 0:00:05]} Kf4 {[%emt 0:00:00]} 43. Re5 {[%emt 0:00:07]} Ra6 {[%emt 0:00:00]} 44. Re3 {[%emt 0:01:25]} Rd6 {[%emt 0:00:00]} 45. Rf3+ {[%emt 0:00:40]} Ke4 {[%emt 0:00:00]} 46. Rf6 {[%emt 0:00:02]} Rxd4 {[%emt 0:01:01]} 1/2-1/2

[Event "XX Gran Hotel Bali-A 2023"]
[Site "Benidorm"]
[Date "2023.12.04"]
[Round "5.6"]
[White "Campora, Daniel H."]
[Black "Ereza Vizcarra, Fernando"]
[Result "1-0"]
[ECO "B45"]
[WhiteElo "2341"]
[BlackElo "2116"]
[Annotator "RC"]
[PlyCount "49"]
[EventDate "2023.12.02"]
[EventType "swiss"]
[EventCountry "ESP"]
[SourceTitle "playchess.com"]
[Source "ChessBase"]
[SourceQuality "1"]
[TimeControl "5400+30"]

1. e4 {[%emt 0:00:01]} c5 {[%emt 0:01:27]} 2. Nf3 {[%emt 0:00:07]} e6 {[%emt 0:00:18]} 3. Nc3 {[%emt 0:00:23]} Nc6 {[%emt 0:00:16]} 4. d4 {[%emt 0:00:10]} cxd4 {[%emt 0:00:04]} 5. Nxd4 {[%emt 0:00:08]} Nf6 {[%emt 0:00:04]} 6. g3 {[%emt 0:00:14]} e5 {[%emt 0:09:56]} 7. Ndb5 {[%emt 0:05:26]} d6 {[%emt 0:00:43]} 8. Bg5 {[%emt 0:00:45]} a6 {[%emt 0:00:28]} 9. Bxf6 {[%emt 0:01:24]} gxf6 {[%emt 0:00:14]} 10. Na3 {[%emt 0:00:06]} Be6 {[%emt 0:01:11]} 11. Nc4 {[%emt 0:00:50]} Rb8 {[%emt 0:02:52]} 12. Nd5 {[%emt 0:04:11]} f5 {[%emt 0:09:32]} 13. exf5 {[%emt 0:02:15]} Bxf5 {[%emt 0:00:12]} 14. Bg2 {[%emt 0:00:19]} Be6 {[%emt 0:06:10]} 15. O-O {[%emt 0:00:50]} Bg7 {[%emt 0:01:13]} 16. Qh5 {[%emt 0:06:34]} Ne7 {[%emt 0:09:46]} 17. Rad1 {[%emt 0:02:18]} b5 {[%emt 0:07:23]} 18. Nxd6+ {[%emt 0:03:06]} Kf8 {[%emt 0:00:06]} 19. Nxe7 {[%emt 0:02:24]} Qxe7 {[%emt 0:00:05]} 20. Nf5 {[%emt 0:02:03]} Qf6 {[%emt 0:00:24]} 21. Be4 {[%emt 0:00:22]} Qg6 {[%emt 0:02:27]} 22. Qf3 {[%emt 0:00:24]} h5 {[%emt 0:00:14]} 23. Qa3+ {[%emt 0:02:48]} b4 {[%emt 0:00:51]} 24. Qxb4+ {[%emt 0:00:10]} Rxb4 {[%emt 0:00:15]} 25. Rd8# {[%emt 1:05:42]} 1-0

[Event "XX Gran Hotel Bali-A 2023"]
[Site "Benidorm"]
[Date "2023.12.04"]
[Round "5.7"]
[White "Ibanez Aullana, Ramon"]
[Black "Solodovnichenko, Yuri"]
[Result "1/2-1/2"]
[ECO "D02"]
[WhiteElo "2207"]
[BlackElo "2490"]
[Annotator "RC"]
[PlyCount "77"]
[EventDate "2023.12.02"]
[EventType "swiss"]
[EventCountry "ESP"]
[SourceTitle "playchess.com"]
[Source "ChessBase"]
[SourceQuality "1"]
[TimeControl "5400+30"]

1. d4 {[%emt 0:05:11]} d5 {[%emt 0:00:28]} 2. Nf3 {[%emt 0:00:48]} c6 {[%emt 0:01:05]} 3. c3 {[%emt 0:02:48]} Bg4 {[%emt 0:02:59]} 4. Qb3 {[%emt 0:01:51]} Qb6 {[%emt 0:01:31]} 5. Bf4 {[%emt 0:01:05]} Nd7 {[%emt 0:00:33]} 6. Nbd2 {[%emt 0:00:27]} e6 {[%emt 0:00:45]} 7. e3 {[%emt 0:00:21]} h6 {[%emt 0:04:45]} 8. h3 {[%emt 0:01:24]} Bh5 {[%emt 0:00:10]} 9. Bd3 {[%emt 0:05:25]} Ne7 {[%emt 0:02:18]} 10. Bd6 {[%emt 0:04:38]} Bg6 {[%emt 0:00:57]} 11. Bxg6 {[%emt 0:00:31]} Nxg6 {[%emt 0:00:06]} 12. Bg3 {[%emt 0:02:08]} Qa6 {[%emt 0:13:08]} 13. c4 {[%emt 0:03:38]} Nb6 {[%emt 0:00:51]} 14. Rc1 {[%emt 0:00:50]} Be7 {[%emt 0:08:04]} 15. O-O {[%emt 0:01:41]} O-O {[%emt 0:00:03]} 16. Ne1 {[%emt 0:01:19]} Qa5 {[%emt 0:06:24]} 17. Rc2 {[%emt 0:09:03]} dxc4 {[%emt 0:04:00]} 18. Nxc4 {[%emt 0:03:11]} Nxc4 {[%emt 0:00:15]} 19. Rxc4 {[%emt 0:01:56]} Qb6 {[%emt 0:00:07]} 20. Qc2 {[%emt 0:01:00]} Rfd8 {[%emt 0:06:21]} 21. Nd3 {[%emt 0:00:58]} Rd5 {[%emt 0:02:13]} 22. Rb1 {[%emt 0:05:13]} Rad8 {[%emt 0:05:09]} 23. b4 {[%emt 0:02:21]} Bf6 {[%emt 0:00:15]} 24. Rc5 {[%emt 0:03:21]} Be7 {[%emt 0:02:14]} 25. Rc3 {[%emt 0:01:55]} Bf6 {[%emt 0:03:00]} 26. b5 {[%emt 0:01:19]} Rxb5 {[%emt 0:00:38]} 27. Rxb5 {[%emt 0:00:10]} Qxb5 {[%emt 0:00:08]} 28. Rb3 {[%emt 0:00:20]} Qf5 {[%emt 0:08:30]} 29. Rxb7 {[%emt 0:00:20]} e5 {[%emt 0:01:13]} 30. Nb4 {[%emt 0:16:53]} Qxc2 {[%emt 0:01:13]} 31. Nxc2 {[%emt 0:00:01]} exd4 {[%emt 0:00:35]} 32. exd4 {[%emt 0:00:58]} a5 {[%emt 0:03:36]} 33. Ra7 {[%emt 0:05:11]} Bxd4 {[%emt 0:01:59]} 34. Nxd4 {[%emt 0:00:27]} Rxd4 {[%emt 0:00:05]} 35. Rxa5 {[%emt 0:00:15]} Nf4 {[%emt 0:00:22]} 36. Rc5 {[%emt 0:03:11]} Ne2+ {[%emt 0:00:36]} 37. Kh2 {[%emt 0:00:08]} Nxg3 {[%emt 0:00:08]} 38. Kxg3 {[%emt 0:00:10]} Ra4 {[%emt 0:00:05]} 39. Rxc6 {[%emt 0:17:34]} 1/2-1/2

[Event "XX Gran Hotel Bali-A 2023"]
[Site "Benidorm"]
[Date "2023.12.04"]
[Round "5.8"]
[White "Domingo Nunez, Ruben"]
[Black "De La Puerta Cresis, Javier"]
[Result "1-0"]
[ECO "A34"]
[WhiteElo "2429"]
[BlackElo "2181"]
[Annotator "RC"]
[PlyCount "39"]
[EventDate "2023.12.02"]
[EventType "swiss"]
[EventCountry "ESP"]
[SourceTitle "playchess.com"]
[Source "ChessBase"]
[SourceQuality "1"]
[TimeControl "5400+30"]

1. Nf3 {[%emt 0:00:14]} c5 {[%emt 0:00:07]} 2. c4 {[%emt 0:00:08]} Nf6 {[%emt 0:00:07]} 3. Nc3 {[%emt 0:00:09]} d5 {[%emt 0:01:30]} 4. cxd5 {[%emt 0:00:30]} Nxd5 {[%emt 0:00:03]} 5. g3 {[%emt 0:00:10]} Nc6 {[%emt 0:00:11]} 6. Bg2 {[%emt 0:00:03]} Nc7 {[%emt 0:00:05]} 7. a3 {[%emt 0:00:03]} Bd7 {[%emt 0:07:13]} 8. d4 {[%emt 0:04:02]} cxd4 {[%emt 0:01:36]} 9. Nxd4 {[%emt 0:02:41]} e5 {[%emt 0:00:31]} 10. Nxc6 {[%emt 0:00:07]} Bxc6 {[%emt 0:00:02]} 11. Bxc6+ {[%emt 0:00:10]} bxc6 {[%emt 0:00:04]} 12. Qa4 {[%emt 0:00:05]} Qd7 {[%emt 0:06:18]} 13. O-O {[%emt 0:03:02]} Be7 {[%emt 0:09:59]} 14. Rd1 {[%emt 0:01:58]} Qe6 {[%emt 0:00:19]} 15. Qa5 {[%emt 0:01:53]} Bd8 {[%emt 0:01:57]} 16. Qb4 {[%emt 0:02:15]} Na6 {[%emt 0:06:54]} 17. Qb7 {[%emt 0:00:17]} Qc8 {[%emt 0:01:06]} 18. Rxd8+ {[%emt 0:00:09]} Kxd8 {[%emt 0:00:02]} 19. Bg5+ {[%emt 0:00:14]} f6 {[%emt 0:00:16]} 20. Qxg7 {[%emt 0:00:13]} 1-0

[Event "XX Gran Hotel Bali-A 2023"]
[Site "Benidorm"]
[Date "2023.12.04"]
[Round "5.9"]
[White "Ilinca, Felix-Antonio"]
[Black "Voiteanu, Gabriel"]
[Result "1-0"]
[ECO "D12"]
[WhiteElo "2395"]
[BlackElo "2198"]
[Annotator "RC"]
[PlyCount "111"]
[EventDate "2023.12.02"]
[EventType "swiss"]
[EventCountry "ESP"]
[SourceTitle "playchess.com"]
[Source "ChessBase"]
[SourceQuality "1"]
[TimeControl "5400+30"]

1. d4 {[%emt 0:00:21]} d5 {[%emt 0:05:41]} 2. c4 {[%emt 0:00:50]} c6 {[%emt 0:00:10]} 3. Nc3 {[%emt 0:00:44]} Nf6 {[%emt 0:00:14]} 4. e3 {[%emt 0:00:42]} Bf5 {[%emt 0:00:42]} 5. Nf3 {[%emt 0:01:17]} e6 {[%emt 0:00:17]} 6. Nh4 {[%emt 0:02:47]} Be4 {[%emt 0:00:11]} 7. f3 {[%emt 0:00:58]} Bg6 {[%emt 0:00:15]} 8. Qb3 {[%emt 0:01:10]} Qb6 {[%emt 0:02:30]} 9. Nxg6 {[%emt 0:01:31]} hxg6 {[%emt 0:01:23]} 10. Bd2 {[%emt 0:02:57]} Bd6 {[%emt 0:03:53]} 11. c5 {[%emt 0:06:38]} Qxb3 {[%emt 0:01:57]} 12. axb3 {[%emt 0:00:13]} Rxh2 {[%emt 0:06:44]} 13. Rxh2 {[%emt 0:01:15]} Bxh2 {[%emt 0:04:14]} 14. Kf2 {[%emt 0:06:38]} Bc7 {[%emt 0:01:46]} 15. b4 {[%emt 0:02:22]} b5 {[%emt 0:18:59]} 16. cxb6 {[%emt 0:07:18]} Bxb6 {[%emt 0:00:08]} 17. Na4 {[%emt 0:02:37]} Bc7 {[%emt 0:24:19]} 18. Bd3 {[%emt 0:09:51]} Nfd7 {[%emt 0:07:01]} 19. b3 {[%emt 0:07:57]} Bd6 {[%emt 0:02:24]} 20. Nc5 {[%emt 0:04:27]} Be7 {[%emt 0:11:30]} 21. g4 {[%emt 0:04:58]} e5 {[%emt 0:02:01]} 22. Bc3 {[%emt 0:04:01]} Bf6 {[%emt 0:01:58]} 23. g5 {[%emt 0:05:04]} Bxg5 {[%emt 0:01:41]} 24. dxe5 {[%emt 0:00:38]} Nxc5 {[%emt 0:00:54]} 25. bxc5 {[%emt 0:00:06]} Nd7 {[%emt 0:00:51]} 26. b4 {[%emt 0:01:51]} Kd8 {[%emt 0:01:10]} 27. f4 {[%emt 0:06:29]} Be7 {[%emt 0:00:07]} 28. e4 {[%emt 0:02:43]} dxe4 {[%emt 0:00:52]} 29. Bxe4 {[%emt 0:00:07]} Kc7 {[%emt 0:00:09]} 30. Ra6 {[%emt 0:00:29]} Nb8 {[%emt 0:00:09]} 31. Ra5 {[%emt 0:00:20]} Kb7 {[%emt 0:00:32]} 32. Bd4 {[%emt 0:01:30]} a6 {[%emt 0:00:10]} 33. Kf3 {[%emt 0:01:02]} Nd7 {[%emt 0:00:18]} 34. Ra2 {[%emt 0:01:36]} Rd8 {[%emt 0:00:53]} 35. Ke3 {[%emt 0:00:31]} Nf8 {[%emt 0:00:16]} 36. Bd3 {[%emt 0:02:20]} Ra8 {[%emt 0:00:24]} 37. Ra5 {[%emt 0:00:21]} Ne6 {[%emt 0:00:33]} 38. Bb2 {[%emt 0:01:25]} Nc7 {[%emt 0:00:11]} 39. Bc4 {[%emt 0:00:17]} f6 {[%emt 0:01:14]} 40. Bf7 {[%emt 0:01:35]} g5 {[%emt 0:00:54]} 41. fxg5 {[%emt 0:00:37]} fxe5 {[%emt 0:00:18]} 42. g6 {[%emt 0:00:48]} Bf6 {[%emt 0:00:19]} 43. Ra1 {[%emt 0:01:25]} Rh8 {[%emt 0:00:29]} 44. Rf1 {[%emt 0:01:15]} Rh3+ {[%emt 0:00:31]} 45. Ke4 {[%emt 0:02:11]} Rh4+ {[%emt 0:00:32]} 46. Kf5 {[%emt 0:01:00]} Rh2 {[%emt 0:00:54]} 47. Bc1 {[%emt 0:00:39]} Rh5+ {[%emt 0:00:30]} 48. Kg4 {[%emt 0:00:11]} Rh2 {[%emt 0:00:44]} 49. Kg3 {[%emt 0:00:16]} Rc2 {[%emt 0:00:14]} 50. Bh6 {[%emt 0:00:50]} Rc3+ {[%emt 0:00:34]} 51. Kg4 {[%emt 0:00:37]} Nd5 {[%emt 0:00:41]} 52. Bxd5 {[%emt 0:01:55]} cxd5 {[%emt 0:00:10]} 53. Rxf6 {[%emt 0:00:59]} gxf6 {[%emt 0:00:50]} 54. g7 {[%emt 0:00:06]} f5+ {[%emt 0:00:14]} 55. Kxf5 {[%emt 0:00:06]} Rf3+ {[%emt 0:00:23]} 56. Kg6 {[%emt 0:00:05]} 1-0

[Event "XX Gran Hotel Bali-A 2023"]
[Site "Benidorm"]
[Date "2023.12.04"]
[Round "5.10"]
[White "Trigo Urquijo, Sergio"]
[Black "Sijpkens, Michiel"]
[Result "1-0"]
[ECO "D36"]
[WhiteElo "2400"]
[BlackElo "2165"]
[Annotator "RC"]
[PlyCount "63"]
[EventDate "2023.12.02"]
[EventType "swiss"]
[EventCountry "ESP"]
[SourceTitle "playchess.com"]
[Source "ChessBase"]
[SourceQuality "1"]
[TimeControl "5400+30"]

1. d4 {[%emt 0:00:04]} d5 {[%emt 0:00:10]} 2. c4 {[%emt 0:00:15]} e6 {[%emt 0:00:33]} 3. Nc3 {[%emt 0:00:21]} Nf6 {[%emt 0:00:13]} 4. Bg5 {[%emt 0:00:48]} Be7 {[%emt 0:00:49]} 5. e3 {[%emt 0:00:24]} O-O {[%emt 0:01:18]} 6. Nf3 {[%emt 0:01:46]} Nbd7 {[%emt 0:06:11]} 7. Rc1 {[%emt 0:01:42]} c6 {[%emt 0:08:01]} 8. cxd5 {[%emt 0:06:49]} exd5 {[%emt 0:00:48]} 9. Bd3 {[%emt 0:01:27]} Re8 {[%emt 0:08:12]} 10. Qc2 {[%emt 0:04:07]} Nf8 {[%emt 0:03:47]} 11. O-O {[%emt 0:05:25]} Ng6 {[%emt 0:01:24]} 12. h3 {[%emt 0:05:38]} Bd6 {[%emt 0:03:30]} 13. Ne2 {[%emt 0:09:33]} h6 {[%emt 0:00:55]} 14. Bxg6 {[%emt 0:05:43]} hxg5 {[%emt 0:00:47]} 15. Bf5 {[%emt 0:03:31]} Ne4 {[%emt 0:01:25]} 16. Bxc8 {[%emt 0:01:23]} Rxc8 {[%emt 0:03:40]} 17. Nd2 {[%emt 0:03:14]} g4 {[%emt 0:05:00]} 18. hxg4 {[%emt 0:05:18]} Qh4 {[%emt 0:04:10]} 19. f4 {[%emt 0:00:19]} Qxg4 {[%emt 0:05:32]} 20. Nxe4 {[%emt 0:02:22]} Rxe4 {[%emt 0:02:42]} 21. Rf3 {[%emt 0:00:45]} Rce8 {[%emt 0:01:42]} 22. Qd3 {[%emt 0:01:44]} Be7 {[%emt 0:02:15]} 23. Rg3 {[%emt 0:06:12]} Qe6 {[%emt 0:03:20]} 24. Rh3 {[%emt 0:00:58]} Bf6 {[%emt 0:11:32]} 25. Kf2 {[%emt 0:02:10]} Qe7 {[%emt 0:11:10]} 26. Rch1 {[%emt 0:04:52]} g6 {[%emt 0:00:19]} 27. Nc3 {[%emt 0:00:44]} Re6 {[%emt 0:03:29]} 28. f5 {[%emt 0:01:23]} gxf5 {[%emt 0:00:10]} 29. Qxf5 {[%emt 0:00:40]} Qd6 {[%emt 0:01:17]} 30. Rf3 {[%emt 0:01:39]} Qb4 {[%emt 0:02:39]} 31. Rh6 {[%emt 0:02:59]} Rxe3 {[%emt 0:02:17]} 32. Qxf6 {[%emt 0:01:14]} 1-0